fUSD/lending_fUSD_20240923
["ID","MTS","AMOUNT","RATE_DAILY","PERIOD"]
[339014669,1727127421201,-185.90686756,0.00012689,2]
[339014670,1727127421223,-2768.9366,0.00012699,2]
[339014671,1727127421244,-224.24802675,0.000127,2]
[339014672,1727127421266,-154.59738114,0.000127,2]
[339014673,1727127421288,-154.59738108,0.00012717,2]
[339014674,1727127421310,-154.59738108,0.00012733,2]
[339014675,1727127421331,-224.24802673,0.0001275,2]
[339014676,1727127421353,-154.59738108,0.0001275,2]
[339014677,1727127421374,-154.59738108,0.00012767,2]
[339014678,1727127421400,-154.59738108,0.00012783,2]
[339014679,1727127421421,-1814.71535246,0.00012789,2]
[339014680,1727127421443,-150.0,0.00012795,2]
[339014681,1727127421465,-5304.36083996,0.00012796,2]
[339014682,1727127547796,1142.45,0.00011935,2]
[339014683,1727127608693,250.0,0.00011931,2]
[339014684,1727127717333,439.0,0.0001194,2]
[339014685,1727127753333,250.0,0.00011949,2]
[339014686,1727127803810,171.07,0.00010959,2]
[339014687,1727127895294,682.19,9.994e-05,2]
[339014688,1727127917604,-150.0,0.0001558,120]
[339014689,1727127997488,192.61,0.00011902,2]
[339014698,1727128133524,1900.0,0.000119,4]
[339014701,1727128160218,152.59,0.00011835,2]
[339014702,1727128164045,1000.0,0.00011835,2]
[339014703,1727128165111,500.0,0.000119,4]
[339014705,1727128231724,-3800.0,0.00012,4]
[339014706,1727128231735,-189.45713517,0.00012,4]
[339014707,1727128231748,-810.54286483,0.00012,4]
[339014708,1727128231758,-5800.0,0.000121,4]
[339014709,1727128231769,-1500.0,0.000121,4]
[339014710,1727128231779,-5384.51605845,0.000122,4]
[339014711,1727128231838,-2315.48394155,0.000122,4]
[339014712,1727128231849,-2000.0,0.000122,4]
[339014713,1727128231859,-682.19,0.00012258,2]
[339014714,1727128231869,-713.31354538,0.000123,4]
[339014715,1727128231881,-894.99,0.000123,4]
[339014716,1727128231893,-858.16390953,0.000123,4]
[339014717,1727128231909,-1712.75896507,0.000123,4]
[339014718,1727128231920,-419.45822279,0.000123,4]
[339014719,1727128231965,-1894.86731563,0.000123,4]
[339014720,1727128232025,-2354.73262451,0.000123,4]
[339014721,1727128232037,-453.51,0.000123,4]
[339014725,1727128237937,-398.20541709,0.000123,4]
[339014726,1727128237946,-2117.26856966,0.000123,4]
[339014727,1727128237959,-382.73143034,0.000123,4]
[339014728,1727128237969,-459.0641913,0.000124,4]
[339014729,1727128237999,-1440.9358087,0.000124,4]
[339014730,1727128238009,-500.0,0.000124,4]
[339014731,1727128238021,-1900.0,0.000125,4]
[339014732,1727128238030,-500.0,0.000125,4]
[339014733,1727128238041,-776.43374046,0.000126,4]
[339014734,1727128238054,-1044.62063914,0.000126,4]
[339014735,1727128238068,-78.9456204,0.000126,4]
[339014736,1727128238078,-500.0,0.000126,4]
[339014737,1727128238089,-154.59738108,0.00012696,2]
[339014738,1727128238100,-65.47066399,0.00012697,2]
[339014739,1727128238111,-938.749024,0.00012697,2]
[339014740,1727128238125,-995.78031201,0.00012697,2]
[339014741,1727128238135,-500.0,0.00012697,2]
[339014742,1727128238147,-1900.0,0.000127,4]
[339014743,1727128238156,-500.0,0.000127,4]
[339014744,1727128238165,-150.0,0.00012767,2]
[339014745,1727128238175,-1000.0,0.00012795,2]
[339014746,1727128238185,-150.0,0.00012795,2]
[339014747,1727128238195,-27923.86313269,0.00012796,2]
[339014751,1727128238387,-329.44018296,0.00012796,2]
[339014754,1727128238407,-555.555,0.00012796,2]
[339014756,1727128238419,-8830.1180421,0.00012796,2]
[339014758,1727128238432,-2926.27464045,0.00012796,2]
[339014760,1727128238443,-565.54412118,0.00012796,2]
[339014870,1727128239697,-6356.23636126,0.00012796,2]
[339014871,1727128239709,-3504.1443,0.00012796,2]
[339014872,1727128239720,-629.29364132,0.00012796,2]
[339014873,1727128239757,-3868.2,0.00012796,2]
[339014874,1727128239769,-3705.05,0.00012796,2]
[339014875,1727128239780,-322.56152394,0.00012796,2]
[339014876,1727128239817,-1367.76559331,0.00012796,2]
[339014877,1727128239828,-1958.10306928,0.00012796,2]
[339014878,1727128239874,-18447.72498648,0.00012796,2]
[339014879,1727128239932,-1177.96266068,0.00012796,2]
[339014880,1727128239944,-1568.29552831,0.00012796,2]
[339014889,1727128240168,-883.29999,0.00012796,2]
[339015104,1727128242296,250.0,0.00011995,2]
[339015153,1727128242726,-377.11693109,0.00012796,2]
[339015160,1727128242783,-653.31270692,0.00012796,2]
[339015183,1727128242987,-457.46219434,0.00012796,2]
[339015185,1727128242999,-265.6000002,0.00012796,2]
[339015188,1727128243019,-1079.31918,0.00012796,2]
[339015194,1727128245879,-973.24910627,0.00012796,2]
[339015195,1727128245998,-13.33683333,0.00012796,2]
[339015196,1727128246010,-668.30843146,0.00012796,2]
[339015197,1727128272343,750.16,0.00010959,2]
[339015198,1727128342435,1200.0,0.00012,2]
[339015199,1727128413423,227.02,0.00010959,2]
[339015200,1727128462162,500.0,9.724e-05,2]
[339015201,1727128462701,500.0,9.724e-05,2]
[339015202,1727128505302,500.0,9.724e-05,2]
[339015203,1727128536337,192.61,0.00011948,2]
[339015204,1727128665147,673.84,0.00010003,2]
[339015205,1727128706012,263.4,0.00011895,2]
[339015206,1727128707919,200.0,0.00011908,2]
[339015207,1727128753585,1050.0,0.00011,2]
[339015208,1727128868526,250.0,0.00011908,2]
[339015209,1727129004271,164.96,0.00010959,2]
[339015210,1727129005454,450.0,0.00010959,2]
[339015215,1727129210152,700.75,9.99e-05,2]
[339015220,1727129240455,1500.0,0.0001188,2]
[339015222,1727129261235,150.0,9.724e-05,2]
[339015223,1727129281096,164.66,0.00011895,2]
[339015224,1727129286235,500.0,9.724e-05,2]
[339015225,1727129286717,500.0,9.724e-05,2]
[339015226,1727129327108,500.0,9.724e-05,2]
[339015227,1727129363044,1000.0,0.00011887,2]
[339015229,1727129386475,10342.34,0.00011887,2]
[339015241,1727129431927,-180.33,0.00012244,2]
[339015242,1727129431938,-216.75384421,0.00012254,2]
[339015243,1727129431950,-483.99615579,0.00012254,2]
[339015244,1727129431960,-632.9953859,0.00012596,2]
[339015245,1727129431970,-300.0,0.00012695,2]
[339015246,1727129431980,-1402.8163,0.00012696,2]
[339015247,1727129431990,-1678.9308,0.00012696,2]
[339015248,1727129431999,-811.8728,0.00012696,2]
[339015249,1727129432009,-152.74456693,0.00012697,2]
[339015250,1727129432024,-1817.0535657,0.00012697,2]
[339015251,1727129432037,-30.20186737,0.00012697,2]
[339015252,1727129432046,-289.65851462,0.00012697,2]
[339015253,1727129432057,-210.34148538,0.00012697,2]
[339015254,1727129432066,-214.3327,0.00012699,2]
[339015255,1727129432076,-1153.88338277,0.00012699,2]
[339015256,1727129432117,-726.71681723,0.00012699,2]
[339015257,1727129432126,-95.78318277,0.00012699,2]
[339015258,1727129432141,-258.76851609,0.00012699,2]
[339015265,1727129438074,-340.82918845,0.00012606,2]
[339015266,1727129438162,-1216.02192436,0.00012606,2]
[339015267,1727129438396,-849.39240122,0.00012606,2]
[339015312,1727129439947,-90.01108597,0.00012606,2]
[339015313,1727129439957,-65.44830114,0.00012699,2]
[339015314,1727129439966,-3071.8389,0.00012699,2]
[339015315,1727129439976,-500.6895,0.00012699,2]
[339015316,1727129439985,-3002.5092447,0.000127,2]
[339015317,1727129439995,-150.0,0.00012705,2]
[339015318,1727129440005,-82227.6061002,0.00012706,2]
[339015319,1727129440017,-306.09729367,0.00012706,2]
[339015320,1727129440029,-753.83647302,0.00012706,2]
[339015321,1727129440064,-526.41,0.00012706,2]
[339015322,1727129440076,-3249.95340702,0.00012706,2]
[339015323,1727129440087,-481.15466669,0.00012706,2]
[339015334,1727129442318,250.0,0.00011957,2]
[339015336,1727129443212,-338.94299958,0.00012706,2]
[339015342,1727129445886,-1775.2024868,0.00012706,2]
[339015343,1727129446055,-4855.4545189,0.00012706,2]
[339015353,1727129446251,-587.59002574,0.00012706,2]
[339015355,1727129446262,-8723.05276721,0.00012706,2]
[339015364,1727129706849,59263.18,0.00011891,2]
[339015365,1727129805640,753.08,9.936e-05,2]
[339015367,1727129913491,371.03,0.00010959,2]
[339015368,1727129924055,309.19,0.00010959,2]
[339015369,1727129934602,257.66,0.00010959,2]
[339015370,1727129945392,214.71,0.00010959,2]
[339015371,1727129952129,500.0,9.724e-05,2]
[339015372,1727129955953,178.93,0.00010959,2]
[339015373,1727129966506,894.67,0.00010959,2]
[339015374,1727129975941,500.0,9.724e-05,2]
[339015375,1727129976987,500.0,9.724e-05,2]
[339015381,1727130217811,161.29,0.00010959,2]
[339015383,1727130326098,250.0,0.00010785,2]
[339015384,1727130329720,171.96,0.0001074,2]
[339015385,1727130331476,250.0,0.0001071,2]
[339015389,1727130352835,774.14,8.806e-05,2]
[339015390,1727130353263,774.14,0.0001107,2]
[339015391,1727130354656,250.0,0.00010959,2]
[339015392,1727130381412,150.0,0.00010789,2]
[339015393,1727130390798,843.77,0.00010706,2]
[339015447,1727130542683,1500.0,0.00010959,2]
[339015459,1727130555859,1050.0,0.00011,2]
[339015464,1727130574645,1000.0,0.00010833,2]
[339015479,1727130632063,-406.77852015,0.00011221,2]
[339015483,1727130632177,-600.81924,0.00011221,2]
[339015484,1727130632191,-1673.47223985,0.00011221,2]
[339015485,1727130632202,-180.32,0.00011268,2]
[339015486,1727130632212,-255.6451737,0.00011278,2]
[339015487,1727130632225,-301.2900896,0.00011278,2]
[339015488,1727130632238,-703.35408122,0.00011278,2]
[339015489,1727130632251,-2.35905548,0.00011278,2]
[339015490,1727130632261,-655.89094452,0.00011378,2]
[339015491,1727130632274,-3201.23744726,0.00011378,2]
[339015492,1727130632284,-1289.35279223,0.00011478,2]
[339015493,1727130632297,-1294.52720777,0.00011478,2]
[339015494,1727130632307,-2583.88,0.00011481,2]
[339015495,1727130632318,-2583.88,0.00011484,2]
[339015496,1727130632330,-2583.88,0.00011487,2]
[339015497,1727130632341,-2583.88,0.0001149,2]
[339015498,1727130632351,-2583.88,0.00011493,2]
[339015499,1727130632362,-1584.12821531,0.00011496,2]
[339015500,1727130632375,-999.75178469,0.00011496,2]
[339015501,1727130632386,-2583.88,0.00011499,2]
[339015502,1727130632398,-2583.88,0.00011502,2]
[339015503,1727130632409,-2506.53288084,0.00011505,2]
[339015504,1727130632421,-77.34711916,0.00011505,2]
[339015505,1727130632432,-865.7437065,0.00011508,2]
[339015506,1727130632445,-570.09,0.00011508,2]
[339015507,1727130632457,-548.16321584,0.00011508,2]
[339015508,1727130632472,-599.88307766,0.00011508,2]
[339015509,1727130632482,-38.65188672,0.00011511,2]
[339015510,1727130632496,-2545.22811328,0.00011511,2]
[339015511,1727130632506,-20.89948738,0.00011514,2]
[339015512,1727130632518,-1552.423596,0.00011514,2]
[339015513,1727130632530,-1010.55691662,0.00011514,2]
[339015514,1727130632540,-2583.88,0.00011517,2]
[339015515,1727130632552,-1000.0,0.00011519,2]
[339015516,1727130632564,-1198.22320108,0.0001152,2]
[339015520,1727130638198,-1385.65679892,0.0001152,2]
[339015521,1727130638209,-2583.88,0.00011523,2]
[339015522,1727130638219,-2583.88,0.00011526,2]
[339015523,1727130638228,-2583.88,0.00011529,2]
[339015524,1727130638238,-998.36319454,0.00011532,2]
[339015525,1727130638250,-1585.51680546,0.00011532,2]
[339015526,1727130638260,-2583.88,0.00011535,2]
[339015527,1727130638270,-150.0,0.00011656,2]
[339015528,1727130638279,-13662.08408666,0.00011657,2]
[339015529,1727130638395,-1851.34130064,0.00011657,2]
[339015530,1727130638408,-729.82228752,0.00011657,2]
[339015531,1727130638419,-289.4002629,0.00011657,2]
[339015532,1727130638431,-464.49215407,0.00011657,2]
[339015533,1727130638445,-2183.16426548,0.00011657,2]
[339015534,1727130638457,-2502.55703922,0.00011657,2]
[339015535,1727130638468,-281.55,0.00011657,2]
[339015536,1727130638480,-450.87290596,0.00011657,2]
[339015537,1727130638493,-273.2828905,0.00011657,2]
[339015538,1727130638504,-594.5,0.00011657,2]
[339015539,1727130638521,-358.33485164,0.00011657,2]
[339015540,1727130638534,-258.59795541,0.00011657,2]
[339015541,1727130638544,-230.65,0.00011681,2]
[339015542,1727130638553,-585.69189909,0.000119,2]
[339015543,1727130638565,-577.86220091,0.000119,2]
[339015544,1727130638575,-14.22348974,0.000119,4]
[339015545,1727130638587,-585.77651026,0.000119,4]
[339015546,1727130638598,-11156.76,0.00012,2]
[339015547,1727130638608,-2999.794428,0.00012,2]
[339015548,1727130638619,-6628.30439943,0.00012,2]
[339015549,1727130639590,-10371.89117257,0.00012,2]
[339015550,1727130639599,-1172.73,0.00012,2]
[339015551,1727130639608,-1141.84797743,0.00012,4]
[339015552,1727130639620,-158.15202257,0.00012,4]
[339015553,1727130639629,-210.72,0.00012003,2]
[339015554,1727130639638,-161.78,0.00012033,2]
[339015555,1727130639647,-646.34797743,0.00012077,2]
[339015556,1727130640229,-14128.13509663,0.00012077,2]
[339015557,1727130640239,-1900.0,0.000121,4]
[339015558,1727130640250,-499.9757285,0.00012159,2]
[339015559,1727130640260,-1000.0,0.00012187,2]
[339015560,1727130640270,-2600.0,0.000122,4]
[339015561,1727130640279,-3200.0,0.000123,4]
[339015562,1727130640290,-194.437434,0.00012329,2]
[339015563,1727130640300,-151.0,0.00012329,2]
[339015564,1727130640310,-194.437434,0.00012329,2]
[339015565,1727130640319,-151.0,0.00012329,2]
[339015566,1727130640329,-151.0,0.00012329,2]
[339015568,1727130640338,-151.0,0.00012329,2]
[339015570,1727130640349,-151.0,0.00012329,2]
[339015572,1727130640360,-151.0,0.00012329,2]
[339015574,1727130640370,-151.0,0.00012329,2]
[339015576,1727130640379,-151.0,0.00012329,2]
[339015578,1727130640389,-151.0,0.00012329,2]
[339015580,1727130640399,-643.78966,0.00012329,2]
[339015582,1727130640408,-643.78966,0.00012329,2]
[339015584,1727130640418,-600.0,0.000124,4]
[339015586,1727130640427,-398446.50954194,0.00012499,2]
[339015588,1727130640437,-194.437434,0.00012499,2]
[339015590,1727130640447,-194.437434,0.00012499,2]
[339015592,1727130640456,-151.0,0.00012499,2]
[339015594,1727130640466,-151.0,0.00012499,2]
[339015596,1727130640475,-151.0,0.00012499,2]
[339015598,1727130640485,-151.0,0.00012499,2]
[339015600,1727130640495,-151.0,0.00012499,2]
[339015602,1727130640505,-151.0,0.00012499,2]
[339015604,1727130640514,-151.0,0.00012499,2]
[339015606,1727130640523,-151.0,0.00012499,2]
[339015608,1727130640534,-151.0,0.00012499,2]
[339015610,1727130640543,-151.0,0.00012499,2]
[339015613,1727130640554,-151.0,0.00012499,2]
[339015615,1727130640563,-151.0,0.00012499,2]
[339015617,1727130640572,-643.78966,0.00012499,2]
[339015619,1727130640581,-643.78966,0.00012499,2]
[339015621,1727130640591,-151.0,0.00012499,2]
[339015622,1727130640600,-151.0,0.00012499,2]
[339015624,1727130640609,-151.0,0.00012499,2]
[339015627,1727130640621,-91591.2543,0.000125,2]
[339015629,1727130640630,-151.0,0.000125,2]
[339015631,1727130640641,-151.0,0.000125,2]
[339015633,1727130640650,-600.0,0.000125,4]
[339015635,1727130640660,-194.437434,0.000125,2]
[339015637,1727130640669,-194.437434,0.000125,2]
[339015639,1727130640679,-151.0,0.000125,2]
[339015641,1727130640688,-151.0,0.000125,2]
[339015643,1727130640697,-167.131126,0.000125,2]
[339015645,1727130640707,-151.0,0.000125,2]
[339015647,1727130640716,-151.0,0.000125,2]
[339015649,1727130640726,-151.0,0.000125,2]
[339015651,1727130640735,-151.0,0.000125,2]
[339015653,1727130640746,-231.008635,0.000125,2]
[339015655,1727130640764,-151.0,0.000125,2]
[339015657,1727130640774,-151.0,0.000125,2]
[339015659,1727130640783,-151.0,0.000125,2]
[339015661,1727130640792,-151.0,0.000125,2]
[339015663,1727130640803,-643.78966,0.000125,2]
[339015665,1727130640813,-643.78966,0.000125,2]
[339015667,1727130640822,-151.0,0.000125,2]
[339015669,1727130640832,-201.110165,0.000125,2]
[339015671,1727130640843,-1577.1293,0.000126,2]
[339015673,1727130640852,-281.8951,0.000126,2]
[339015675,1727130640861,-1000.0,0.000126,2]
[339015677,1727130640870,-60453.7854,0.000126,2]
[339015679,1727130640881,-182.953,0.000126,2]
[339015681,1727130640891,-151.0,0.000126,2]
[339015683,1727130640900,-209.086413,0.000126,2]
[339015685,1727130640910,-209.086413,0.000126,2]
[339015687,1727130640920,-151.0,0.000126,2]
[339015689,1727130640930,-151.0,0.000126,2]
[339015691,1727130640939,-600.0,0.000126,4]
[339015693,1727130640949,-194.437434,0.000126,2]
[339015695,1727130640958,-194.437434,0.000126,2]
[339015697,1727130640969,-151.0,0.000126,2]
[339015699,1727130640979,-151.0,0.000126,2]
[339015701,1727130640988,-151.0,0.000126,2]
[339015703,1727130640997,-151.0,0.000126,2]
[339015704,1727130641007,-151.0,0.000126,2]
[339015706,1727130641016,-151.0,0.000126,2]
[339015708,1727130641026,-151.0,0.000126,2]
[339015710,1727130641035,-151.0,0.000126,2]
[339015712,1727130641044,-151.0,0.000126,2]
[339015714,1727130641054,-643.78966,0.000126,2]
[339015716,1727130641063,-643.78966,0.000126,2]
[339015718,1727130641073,-151.0,0.000126,2]
[339015719,1727130641083,-2000.0,0.00012697,2]
[339015720,1727130641092,-500.0,0.00012697,2]
[339015721,1727130641103,-294.524278,0.00012699,2]
[339015722,1727130641113,-151.0,0.00012699,2]
[339015723,1727130641122,-158338.27841359,0.000127,2]
[339015724,1727130641163,-518.68856123,0.000127,2]
[339015725,1727130641174,-500.12611344,0.000127,2]
[339015726,1727130643153,-1210.0,0.000127,2]
[339015727,1727130643167,-2829.58704795,0.000127,2]
[339015728,1727130643179,-3011.29539032,0.000127,2]
[339015729,1727130643191,-511.74477419,0.000127,2]
[339015730,1727130643255,-2719.42129826,0.000127,2]
[339015731,1727130643267,-298.72,0.000127,2]
[339015732,1727130643279,-500.0,0.000127,2]
[339015733,1727130643290,-9245.25,0.000127,2]
[339015734,1727130643302,-20388.00537051,0.000127,2]
[339015735,1727130643311,-151.0,0.000127,2]
[339015736,1727130643321,-151.0,0.000127,2]
[339015737,1727130643331,-151.0,0.000127,2]
[339015738,1727130643340,-151.0,0.000127,2]
[339015739,1727130643350,-204.493602,0.000127,2]
[339015740,1727130643360,-204.493602,0.000127,2]
[339015741,1727130643370,-151.0,0.000127,2]
[339015742,1727130643379,-209.086413,0.000127,2]
[339015743,1727130643389,-209.086413,0.000127,2]
[339015744,1727130643399,-209.086413,0.000127,2]
[339015745,1727130643409,-209.086413,0.000127,2]
[339015746,1727130643419,-151.0,0.000127,2]
[339015747,1727130643428,-151.0,0.000127,2]
[339015748,1727130643437,-151.0,0.000127,2]
[339015749,1727130643447,-151.0,0.000127,2]
[339015750,1727130643457,-600.0,0.000127,4]
[339015751,1727130643467,-194.437434,0.000127,2]
[339015752,1727130643476,-194.437434,0.000127,2]
[339015753,1727130643486,-151.0,0.000127,2]
[339015755,1727130643499,-207.365705,0.000127,2]
[339015757,1727130643508,-151.0,0.000127,2]
[339015759,1727130643517,-151.0,0.000127,2]
[339015761,1727130643527,-151.0,0.000127,2]
[339015763,1727130643537,-151.0,0.000127,2]
[339015765,1727130643548,-291.172259,0.000127,2]
[339015767,1727130643557,-151.0,0.000127,2]
[339015769,1727130643567,-643.78966,0.000127,2]
[339015771,1727130643576,-246.320541,0.000127,2]
[339015778,1727130643732,-397.469119,0.000127,2]
[339015794,1727130643883,-151.0,0.000127,2]
[339015796,1727130643895,-822.47517856,0.00012706,2]
[339015798,1727130643905,-200.0,0.00012706,2]
[339015800,1727130643915,-200.0,0.00012706,2]
[339015802,1727130643924,-65.3762557,0.00012706,2]
[339015804,1727130643936,-500.0,0.00012706,2]
[339015806,1727130643947,-18847.96200157,0.00012706,2]
[339015809,1727130643959,-6020.00259753,0.00012706,2]
[339015811,1727130643971,-7654.86113804,0.00012706,2]
[339015813,1727130643983,-469.133491,0.00012706,2]
[339015815,1727130643997,-4783.16,0.00012706,2]
[339015817,1727130644008,-22850.13228136,0.00012706,2]
[339015820,1727130644020,-76562.02770639,0.00012706,2]
[339015822,1727130644029,-223.78464365,0.00012707,2]
[339015824,1727130644039,-413.925852,0.00012707,2]
[339015826,1727130644048,-413.925852,0.00012707,2]
[339015828,1727130644057,-151.0,0.00012707,2]
[339015830,1727130644067,-151.0,0.00012707,2]
[339015832,1727130644077,-151.0,0.00012707,2]
[339015834,1727130644087,-151.0,0.00012707,2]
[339015836,1727130644096,-151.0,0.00012707,2]
[339015838,1727130644106,-151.0,0.00012707,2]
[339015840,1727130644116,-385.942848,0.00012707,2]
[339015842,1727130644126,-385.942848,0.00012707,2]
[339015844,1727130644135,-151.0,0.00012707,2]
[339015846,1727130644145,-166.579249,0.00012707,2]
[339015848,1727130644155,-166.579249,0.00012707,2]
[339015850,1727130644166,-151.0,0.00012707,2]
[339015852,1727130644176,-151.0,0.00012707,2]
[339015854,1727130644186,-151.0,0.00012707,2]
[339015856,1727130644195,-151.0,0.00012707,2]
[339015858,1727130644205,-461.859838,0.00012707,2]
[339015860,1727130644215,-461.859838,0.00012707,2]
[339015862,1727130644224,-151.0,0.00012707,2]
[339015864,1727130644234,-151.0,0.00012707,2]
[339015866,1727130644246,-151.0,0.00012707,2]
[339015868,1727130644256,-151.0,0.00012707,2]
[339015870,1727130644265,-151.0,0.00012707,2]
[339015872,1727130644275,-151.0,0.00012707,2]
[339015874,1727130644284,-151.0,0.00012707,2]
[339015875,1727130644293,-204.493602,0.00012707,2]
[339015877,1727130644303,-204.493602,0.00012707,2]
[339015879,1727130644313,-165.72597,0.00012707,2]
[339015881,1727130644322,-209.086413,0.00012707,2]
[339015883,1727130644332,-209.086413,0.00012707,2]
[339015886,1727130644344,-152.03947,0.00012707,2]
[339015888,1727130644354,-267.8337,0.00012707,2]
[339015890,1727130644364,-194.437434,0.00012707,2]
[339015892,1727130644374,-194.437434,0.00012707,2]
[339015894,1727130644384,-151.0,0.00012707,2]
[339015896,1727130644394,-151.0,0.00012707,2]
[339015898,1727130644404,-151.0,0.00012707,2]
[339015900,1727130644414,-151.0,0.00012707,2]
[339015902,1727130644424,-151.0,0.00012707,2]
[339015904,1727130644434,-151.0,0.00012707,2]
[339015906,1727130644444,-643.78966,0.00012707,2]
[339015908,1727130644453,-643.78966,0.00012707,2]
[339015910,1727130644463,-151.0,0.00012707,2]
[339015912,1727130644472,-500.0,0.00012773,2]
[339015914,1727130644482,-250.37,0.00012789,2]
[339015916,1727130644492,-167.558,0.00012789,2]
[339015918,1727130644502,-200.0,0.00012796,2]
[339015920,1727130644514,-200.0,0.00012796,2]
[339015922,1727130644523,-151.0,0.00012797,2]
[339015924,1727130644534,-151.0,0.00012797,2]
[339015926,1727130644544,-293.2025,0.00012797,2]
[339015928,1727130644554,-151.0,0.00012797,2]
[339015930,1727130644564,-151.0,0.00012797,2]
[339015932,1727130644574,-413.925852,0.00012797,2]
[339015934,1727130644583,-413.925852,0.00012797,2]
[339015936,1727130644593,-151.0,0.00012797,2]
[339015938,1727130644603,-151.0,0.00012797,2]
[339015940,1727130644612,-151.0,0.00012797,2]
[339015942,1727130644622,-151.0,0.00012797,2]
[339015944,1727130644631,-151.0,0.00012797,2]
[339015946,1727130644641,-385.942848,0.00012797,2]
[339015948,1727130644650,-385.942848,0.00012797,2]
[339015950,1727130644660,-151.0,0.00012797,2]
[339015952,1727130644669,-166.579249,0.00012797,2]
[339015955,1727130644679,-166.579249,0.00012797,2]
[339015957,1727130644689,-151.0,0.00012797,2]
[339015959,1727130644698,-151.0,0.00012797,2]
[339015961,1727130644707,-151.0,0.00012797,2]
[339015963,1727130644718,-151.0,0.00012797,2]
[339015965,1727130644728,-461.859838,0.00012797,2]
[339015967,1727130644738,-461.859838,0.00012797,2]
[339015969,1727130644749,-151.0,0.00012797,2]
[339015971,1727130644759,-151.0,0.00012797,2]
[339015973,1727130644768,-151.0,0.00012797,2]
[339015975,1727130644779,-151.0,0.00012797,2]
[339015977,1727130644789,-151.0,0.00012797,2]
[339015979,1727130644799,-204.493602,0.00012797,2]
[339015981,1727130644811,-204.493602,0.00012797,2]
[339015983,1727130644820,-1627.71,0.00012798,2]
[339015985,1727130644830,-76126.21173301,0.000128,2]
[339015987,1727130644842,-36597.54571064,0.000128,2]
[339015990,1727130644855,-3664.28065587,0.000128,2]
[339015992,1727130644866,-3397.76989014,0.000128,2]
[339015994,1727130644877,-1269.05719409,0.000128,2]
[339015996,1727130644891,-5528.38735341,0.000128,2]
[339015998,1727130644902,-103451.12935632,0.000128,2]
[339016158,1727130646382,-809.0,0.00012799,2]
[339016160,1727130646392,-9210.09632223,0.000128,2]
[339016162,1727130646403,-1301.37556257,0.000128,2]
[339016164,1727130646415,-8333.3835,0.000128,2]
[339022016,1727130732741,500.0,9.724e-05,2]
[339022017,1727130733458,500.0,9.724e-05,2]
[339022027,1727130769941,171.85,0.00010959,2]
[339022028,1727130822653,500.0,9.724e-05,2]
[339022029,1727130881805,875.65,9.656e-05,2]
[339022031,1727130908746,500.0,9.724e-05,2]
[339022033,1727131337756,225.85,0.00010959,2]
[339022034,1727131488858,886.27,9.341e-05,2]
[339022035,1727131505703,-150.0,0.00011154,2]
[339022036,1727131506976,-271.88,0.00011154,2]
[339022037,1727131507001,-359.58,0.00011183,2]
[339022038,1727131507025,-400.0,0.00011185,2]
[339022039,1727131507051,-250.0,0.0001119,2]
[339022040,1727131507078,-300.0,0.00011221,2]
[339022041,1727131507101,-150.0,0.00011221,2]
[339022042,1727131507123,-22158.54,0.00011232,2]